Workbook

Sheet CIA (hidden)
A1: EMPRESA
A2: NOMBRE | B2: ARCHIVO EXCEL EIRL | F2: ENERO | I2: NUEVOS SOLES | L2: INGRESO
A3: RUC | B3: 20123456789 | F3: FEBRERO | I3: DÓLARES AMERICANOS | L3: EGRESO
A4: PERIODO | B4: 2013 | F4: MARZO
A5: MES | B5: ENERO | F5: ABRIL
A6: IGV | B6: 0.18 | F6: MAYO
F7: JUNIO
F8: JULIO
F9: AGOSTO
F10: SEPTIEMBRE
F11: OCTUBRE
F12: NOVIEMBRE
F13: DICIEMBRE

Sheet TPC (hidden)
A1: PLAN DE CUENTAS
A2: x
A3: CTA | B3: REGISTRO | C3: NOMBRE | D3: AMAR. DEB. | E3: AMAR. HAB. | F3: GRUPO
A4: 10 | C4: EFECTIVO Y EQUIVALENTES DE EFECTIVO
A5: 101 | B5: 10100 | C5: Caja | F5: 1
A6: 102 | B6: 10200 | C6: Fondos fijos | F6: 1
A7: 103 | B7: 10300 | C7: Efectivo en Tránsito | F7: 1
A8: 104 | C8: Cuentas corrientes en instituciones financieras
A9: 1041 | B9: 10410 | C9: Cuentas corrientes operativas | F9: 1
A10: 1042 | B10: 10420 | C10: Cuentas corrientes para fines específicos | F10: 1
A11: 105 | C11: Otros equivalentes de efectivo
A12: 1051 | B12: 10510 | C12: Otros equivalentes de efectivo | F12: 1
A13: 106 | C13: Depósitos en instituciones financieras
A14: 1061 | B14: 10610 | C14: Depósitos de ahorro | F14: 1
A15: 1062 | B15: 10620 | C15: Depósitos a plazo | F15: 1
A16: 107 | C16: Fondos sujetos a restricción
A17: 1071 | B17: 10710 | C17: Fondos Sujetos a Restricción | F17: 1
A18: 11 | C18: INVERSIONES FINANCIERAS
A19: 111 | C19: Inversiones mantenidas para negociación
A20: 1111 | C20: Valores emitidos o garantizados por el Estado
A21: 11111 | B21: 11111 | C21: Costo | F21: 1
A22: 11112 | B22: 11112 | C22: Valor Razonable | F22: 1
A23: 1112 | C23: Valores emitidos por el sistema financiero
A24: 11121 | B24: 11121 | C24: Costo | F24: 1
A25: 11122 | B25: 11122 | C25: Valor Razonable | F25: 1
A26: 1113 | C26: Valores emitidos por empresa
A27: 11131 | B27: 11131 | C27: Costo | F27: 1
A28: 11132 | B28: 11132 | C28: Valor Razonable | F28: 1
A29: 1114 | C29: Otros títulos representativos de deuda
A30: 11141 | B30: 11141 | C30: Costo | F30: 1
A31: 11142 | B31: 11142 | C31: Valor Razonable | F31: 1
A32: 1115 | C32: Participaciones en entidades
A33: 11151 | B33: 11151 | C33: Costo | F33: 1
A34: 11152 | B34: 11152 | C34: Valor Razonable | F34: 1
A35: 112 | C35: Inversiones disponibles para la venta
A36: 1121 | C36: Valores emitidos o garantizados por el Estado
A37: 11211 | B37: 11211 | C37: Costo | F37: 1
A38: 11212 | B38: 11212 | C38: Valor Razonable | F38: 1
A39: 1122 | C39: Valores emitidos por el sistema financiero
A40: 11221 | B40: 11221 | C40: Costo | F40: 1
A41: 11222 | B41: 11222 | C41: Valor Razonable | F41: 1
A42: 1123 | C42: Valores emitidos por empresas
A43: 11231 | B43: 11231 | C43: Costo | F43: 1
A44: 11232 | B44: 11232 | C44: Valor Razonable | F44: 1
A45: 1124 | C45: Otros títulos representativos de deuda
A46: 11241 | B46: 11241 | C46: Costo | F46: 1
A47: 11242 | B47: 11242 | C47: Valor Razonable | F47: 1
A48: 113 | C48: Activos financieros - Acuerdo de compra
A49: 1131 | C49: Inversiones mantenidas para negociación – Acuerdo de compra
A50: 11311 | B50: 11311 | C50: Costo | F50: 1
A51: 11312 | B51: 11312 | C51: Valor Razonable | F51: 1
A52: 1132 | C52: Inversiones disponibles para la venta – Acuerdo de compra
A53: 11321 | B53: 11321 | C53: Costo | F53: 1
A54: 11322 | B54: 11322 | C54: Valor Razonable | F54: 1
A55: 12 | C55: CUENTAS POR COBRAR COMERCIALES – TERCEROS
A56: 121 | C56: Facturas, boletas y otros comprobantes por cobrar
A57: 1211 | B57: 12110 | C57: No emitidas | F57: 1
A58: 1212 | B58: 12120 | C58: Emitidas en cartera | F58: 1
A59: 1213 | B59: 12130 | C59: En cobranza | F59: 1
A60: 1214 | B60: 12140 | C60: En descuento | F60: 1
A61: 122 | B61: 12200 | C61: Anticipos de clientes | F61: 1
A62: 123 | C62: Letras por cobrar
A63: 1231 | B63: 12310 | C63: En cartera | F63: 1
A64: 1232 | B64: 12320 | C64: En cobranza | F64: 1
A65: 1233 | B65: 12330 | C65: En descuento | F65: 1
A66: 13 | C66: CUENTAS POR COBRAR COMERCIALES – RELACIONADAS
A67: 131 | C67: Facturas, boletas y otros comprobantes por cobrar
A68: 1311 | C68: No emitidas
A69: 13111 | B69: 13111 | C69: Matriz | F69: 1
A70: 13112 | B70: 13112 | C70: Subsidiarias | F70: 1
A71: 13113 | B71: 13113 | C71: Asociadas | F71: 1
A72: 13114 | B72: 13114 | C72: Sucursales | F72: 1
A73: 13115 | B73: 13115 | C73: Otros | F73: 1
A74: 1312 | C74: Emitidas en cartera
A75: 13121 | B75: 13121 | C75: Matriz | F75: 1
A76: 13122 | B76: 13122 | C76: Subsidiarias | F76: 1
A77: 13123 | B77: 13123 | C77: Asociadas | F77: 1
A78: 13124 | B78: 13124 | C78: Sucursales | F78: 1
A79: 13125 | B79: 13125 | C79: Otros | F79: 1
A80: 1313 | C80: En cobranza
A81: 13131 | B81: 13131 | C81: Matriz | F81: 1
A82: 13132 | B82: 13132 | C82: Subsidiarias | F82: 1
A83: 13133 | B83: 13133 | C83: Asociadas | F83: 1
A84: 13134 | B84: 13134 | C84: Sucursales | F84: 1
A85: 13135 | B85: 13135 | C85: Otros | F85: 1
A86: 1314 | C86: En descuento
A87: 13141 | B87: 13141 | C87: Matriz | F87: 1
A88: 13142 | B88: 13142 | C88: Subsidiarias | F88: 1
A89: 13143 | B89: 13143 | C89: Asociadas | F89: 1
A90: 13144 | B90: 13144 | C90: Sucursales | F90: 1
A91: 13145 | B91: 13145 | C91: Otros | F91: 1
A92: 132 | C92: Anticipos recibidos
A93: 1321 | C93: Anticipos recibidos
A94: 13211 | B94: 13211 | C94: Matriz | F94: 1
A95: 13212 | B95: 13212 | C95: Subsidiarias | F95: 1
A96: 13213 | B96: 13213 | C96: Asociadas | F96: 1
A97: 13214 | B97: 13214 | C97: Sucursales | F97: 1
A98: 13215 | B98: 13215 | C98: Otros | F98: 1
A99: 133 | C99: Letras por cobrar
A100: 1331 | C100: En cartera
A101: 13311 | B101: 13311 | C101: Matriz | F101: 1
A102: 13312 | B102: 13312 | C102: Subsidiarias | F102: 1
A103: 13313 | B103: 13313 | C103: Asociadas | F103: 1
A104: 13314 | B104: 13314 | C104: Sucursales | F104: 1
A105: 13315 | B105: 13315 | C105: Otros | F105: 1
A106: 1332 | C106: En cobranza
A107: 13321 | B107: 13321 | C107: Matriz | F107: 1
A108: 13322 | B108: 13322 | C108: Subsidiarias | F108: 1
A109: 13323 | B109: 13323 | C109: Asociadas | F109: 1
A110: 13324 | B110: 13324 | C110: Sucursales | F110: 1
A111: 13325 | B111: 13325 | C111: Otros | F111: 1
A112: 1333 | C112: En descuento
A113: 13331 | B113: 13331 | C113: Matriz | F113: 1
A114: 13332 | B114: 13332 | C114: Subsidiarias | F114: 1
A115: 13333 | B115: 13333 | C115: Asociadas | F115: 1
A116: 13334 | B116: 13334 | C116: Sucursales | F116: 1
A117: 13335 | B117: 13335 | C117: Otros | F117: 1
A118: 14 | C118: CUENTAS POR COBRAR AL PERSONAL, A LOS ACCIONISTAS (SOCIOS), DIRECTORES Y GERENTES
A119: 141 | C119: Personal
A120: 1411 | B120: 14110 | C120: Préstamos | F120: 1
A121: 1412 | B121: 14120 | C121: Adelanto de remuneraciones | F121: 1
A122: 1413 | B122: 14130 | C122: Entregas a rendir cuenta | F122: 1
A123: 1419 | B123: 14190 | C123: Otras cuentas por cobrar al personal | F123: 1
A124: 142 | C124: Accionistas (o socios)
A125: 1421 | B125: 14210 | C125: Suscripciones por cobrar a socios o accionistas | F125: 1
A126: 1422 | B126: 14220 | C126: Préstamos | F126: 1
A127: 143 | C127: Directores
A128: 1431 | B128: 14310 | C128: Préstamos | F128: 1
A129: 1432 | B129: 14320 | C129: Adelanto de dietas | F129: 1
A130: 1433 | B130: 14330 | C130: Entregas a rendir cuenta | F130: 1
A131: 144 | C131: Gerentes
A132: 1441 | B132: 14410 | C132: Préstamos | F132: 1
A133: 1442 | B133: 14420 | C133: Adelanto de remuneraciones | F133: 1
A134: 1443 | B134: 14430 | C134: Entregas a rendir cuenta | F134: 1
A135: 148 | B135: 14800 | C135: Diversas | F135: 1
A136: 16 | C136: CUENTAS POR COBRAR DIVERSAS - TERCEROS
A137: 161 | C137: Préstamos
A138: 1611 | B138: 16110 | C138: Con garantía | F138: 1
A139: 1612 | B139: 16120 | C139: Sin garantía | F139: 1
A140: 162 | C140: Reclamaciones a terceros
A141: 1621 | B141: 16210 | C141: Compañías aseguradoras | F141: 1
A142: 1622 | B142: 16220 | C142: Transportadoras | F142: 1
A143: 1623 | B143: 16230 | C143: Servicios públicos | F143: 1
A144: 1624 | B144: 16240 | C144: Tributos | F144: 1
A145: 1629 | B145: 16290 | C145: Otras | F145: 1
A146: 163 | C146: Intereses, regalías y dividendos
A147: 1631 | B147: 16310 | C147: Intereses | F147: 1
A148: 1632 | B148: 16320 | C148: Regalías | F148: 1
A149: 1633 | B149: 16330 | C149: Dividendos | F149: 1
A150: 164 | C150: Depósitos otorgados en garantía
A151: 1641 | B151: 16410 | C151: Préstamos de instituciones financieras | F151: 1
A152: 1642 | B152: 16420 | C152: Préstamos de instituciones no financieras | F152: 1
A153: 1644 | B153: 16440 | C153: Depósitos en garantía por alquileres | F153: 1
A154: 1649 | B154: 16490 | C154: Otros depósitos en garantía | F154: 1
A155: 165 | C155: Venta de activo inmovilizado
A156: 1651 | B156: 16510 | C156: Inversión mobiliaria | F156: 1
A157: 1652 | B157: 16520 | C157: Inversión inmobiliaria | F157: 1
A158: 1653 | B158: 16530 | C158: Inmuebles, maquinaria y equipo | F158: 1
A159: 1654 | B159: 16540 | C159: Intangibles | F159: 1
A160: 1655 | B160: 16550 | C160: Activos biológicos | F160: 1
A161: 166 | C161: Activos por instrumentos financieros
A162: 1661 | B162: 16610 | C162: Instrumentos financieros primarios | F162: 1
A163: 1662 | C163: Instrumentos financieros derivados
A164: 16621 | B164: 16621 | C164: Cartera de negociación | F164: 1
A165: 16622 | B165: 16622 | C165: Instrumentos de cobertura | F165: 1
A166: 168 | C166: Otras cuentas por cobrar diversas
A167: 1681 | B167: 16810 | C167: Entregas a rendir cuenta a terceros | F167: 1
A168: 1689 | B168: 16890 | C168: Otras cuentas por cobrar diversas | F168: 1
A169: 17 | C169: CUENTAS POR COBRAR DIVERSAS - RELACIONADAS
A170: 171 | C170: Préstamos
A171: 1711 | C171: Con garantía
A172: 17111 | B172: 17111 | C172: Matriz | F172: 1
A173: 17112 | B173: 17112 | C173: Subsidiarias | F173: 1
A174: 17113 | B174: 17113 | C174: Asociadas | F174: 1
A175: 17114 | B175: 17114 | C175: Sucursales | F175: 1
A176: 17115 | B176: 17115 | C176: Otros | F176: 1
A177: 1712 | C177: Sin garantía
A178: 17121 | B178: 17121 | C178: Matriz | F178: 1
A179: 17122 | B179: 17122 | C179: Subsidiarias | F179: 1
A180: 17123 | B180: 17123 | C180: Asociadas | F180: 1
A181: 17124 | B181: 17124 | C181: Sucursales | F181: 1
A182: 17125 | B182: 17125 | C182: Otros | F182: 1
A183: 173 | C183: Intereses, regalías y dividendos
A184: 1731 | C184: Intereses
A185: 17311 | B185: 17311 | C185: Matriz | F185: 1
A186: 17312 | B186: 17312 | C186: Subsidiarias | F186: 1
A187: 17313 | B187: 17313 | C187: Asociadas | F187: 1
A188: 17314 | B188: 17314 | C188: Sucursales | F188: 1
A189: 17315 | B189: 17315 | C189: Otros | F189: 1
A190: 1732 | C190: Regalías
A191: 17321 | B191: 17321 | C191: Matriz | F191: 1
A192: 17322 | B192: 17322 | C192: Subsidiarias | F192: 1
A193: 17323 | B193: 17323 | C193: Asociadas | F193: 1
A194: 17324 | B194: 17324 | C194: Sucursales | F194: 1
A195: 17325 | B195: 17325 | C195: Otros | F195: 1
A196: 1733 | C196: Dividendos
A197: 17331 | B197: 17331 | C197: Matriz | F197: 1
A198: 17332 | B198: 17332 | C198: Subsidiarias | F198: 1
A199: 17333 | B199: 17333 | C199: Asociadas | F199: 1
A200: 17334 | B200: 17334 | C200: Otros | F200: 1
... 2944 more rows

Sheet TVOU (hidden)
A1: TIPO DE VOUCHERS
A2: CÓDIGO | B2: DETALLE | C2: 1 | D2: 2 | E2: 3 | F2: 4 | G2: 5 | H2: 6 | I2: 7 | J2: 8 | K2: 9 | L2: 10 | M2: 11 | N2: 12
A3: 1 | B3: APERTURA | C3: 1 | D3: 0 | E3: 0 | F3: 0 | G3: 0 | H3: 0 | I3: 0 | J3: 0 | K3: 0 | L3: 0 | M3: 0 | N3: 0
A4: 2 | B4: VENTAS | C4: 1 | D4: 0 | E4: 0 | F4: 0 | G4: 0 | H4: 0 | I4: 0 | J4: 0 | K4: 0 | L4: 0 | M4: 0 | N4: 0
A5: 3 | B5: COMPRAS | C5: 2 | D5: 0 | E5: 0 | F5: 0 | G5: 0 | H5: 0 | I5: 0 | J5: 0 | K5: 0 | L5: 0 | M5: 0 | N5: 0
A6: 4 | B6: CAJA | C6: 1 | D6: 0 | E6: 0 | F6: 0 | G6: 0 | H6: 0 | I6: 0 | J6: 0 | K6: 0 | L6: 0 | M6: 0 | N6: 0
A7: 5 | B7: BANCOS | C7: 0 | D7: 0 | E7: 0 | F7: 0 | G7: 0 | H7: 0 | I7: 0 | J7: 0 | K7: 0 | L7: 0 | M7: 0 | N7: 0
A8: 6 | B8: DIARIO | C8: 1 | D8: 0 | E8: 0 | F8: 0 | G8: 0 | H8: 0 | I8: 0 | J8: 0 | K8: 0 | L8: 0 | M8: 0 | N8: 0
A9: 7 | B9: PLANILLA | C9: 0 | D9: 0 | E9: 0 | F9: 0 | G9: 0 | H9: 0 | I9: 0 | J9: 0 | K9: 0 | L9: 0 | M9: 0 | N9: 0

Sheet TLIBROS (hidden)
A1: TIPOS DE LIBROS
A2: CÓDIGO | B2: NOMBRE O DESCRIPCIÓN
A3: 1 | B3: LIBRO CAJA Y BANCOS
A4: 2 | B4: LIBRO DE INGRESOS Y GASTOS
A5: 3 | B5: LIBRO DE INVENTARIOS Y BALANCES
A6: 4 | B6: LIBRO DE RETENCIONES INCISOS E) Y F) DEL ARTICULO 34° DE LA LEY DEL IMPUESTO A LA RENTA
A7: 5 | B7: LIBRO DIARIO
A8: 6 | B8: LIBRO MAYOR
A9: 7 | B9: REGISTRO DE ACTIVOS FIJOS
A10: 8 | B10: REGISTRO DE COMPRAS
A11: 9 | B11: REGISTRO DE CONSIGNACIONES
A12: 10 | B12: REGISTRO DE COSTOS
A13: 11 | B13: REGISTRO DE HUÉSPEDES
A14: 12 | B14: REGISTRO DE INVENTARIO PERMANENTE EN UNIDADES FÍSICAS
A15: 13 | B15: REGISTRO DE INVENTARIO PERMANENTE VALORIZADO
A16: 14 | B16: REGISTRO DE VENTAS E INGRESOS
A17: 15 | B17: REGISTRO DE VENTAS E INGRESOS - ARTÍCULO 23° RESOLUCIÓN DE SUPERINTENDENCIA N° 266-2004/SUNAT
A18: 16 | B18: REGISTRO DEL RÉGIMEN DE PERCEPCIONES
A19: 17 | B19: REGISTRO DEL RÉGIMEN DE RETENCIONES
A20: 18 | B20: REGISTRO DE RETENCIONES ARTÍCULO 77-A DE LA LEY DE IMPUESTO A LA RENTA
A21: 19 | B21: REGISTRO IVAP
A22: 20 | B22: REGISTRO(S) AUXILIAR(ES) DE ADQUISICIONES - ARTÍCULO 8° RESOLUCIÓN DE SUPERINTENDENCIA N° 022-98/SUNAT
A23: 21 | B23: REGISTRO(S) AUXILIAR(ES) DE ADQUISICIONES - INCISO A) PRIMER PÁRRAFO ARTÍCULO 5° RESOLUCIÓN DE SUPERINTENDENCIA N° 021-99/SUNAT
A24: 22 | B24: REGISTRO(S) AUXILIAR(ES) DE ADQUISICIONES - INCISO A) PRIMER PÁRRAFO ARTÍCULO 5° RESOLUCIÓN DE SUPERINTENDENCIA N° 142-2001/SUNAT
A25: 23 | B25: REGISTRO(S) AUXILIAR(ES) DE ADQUISICIONES - INCISO C) PRIMER PÁRRAFO ARTÍCULO 5° RESOLUCIÓN DE SUPERINTENDENCIA N° 256-2004/SUNAT
A26: 24 | B26: REGISTRO(S) AUXILIAR(ES) DE ADQUISICIONES - INCISO A) PRIMER PÁRRAFO ARTÍCULO 5° RESOLUCIÓN DE SUPERINTENDENCIA N° 257-2004/SUNAT
A27: 25 | B27: REGISTRO(S) AUXILIAR(ES) DE ADQUISICIONES - INCISO C) PRIMER PÁRRAFO ARTÍCULO 5° RESOLUCIÓN DE SUPERINTENDENCIA N° 258-2004/SUNAT
A28: 26 | B28: REGISTRO(S) AUXILIAR(ES) DE ADQUISICIONES - INCISO A) PRIMER PÁRRAFO ARTÍCULO 5° RESOLUCIÓN DE SUPERINTENDENCIA N° 259-2004/SUNAT
A29: 27 | B29: LIBRO DE ACTAS DE LA EMPRESA INDIVIDUAL DE RESPONSABILIDAD LIMITADA
A30: 28 | B30: LIBRO DE ACTAS DE LA JUNTA GENERAL DE ACCIONISTAS
A31: 29 | B31: LIBRO DE ACTAS DEL DIRECTORIO
A32: 30 | B32: LIBRO DE MATRÍCULA DE ACCIONES
A33: 31 | B33: LIBRO DE PLANILLAS

Sheet TCOMPROB (hidden)
A1: TIPOS DE COMPROBANTES
A2: N° | B2: DESCRIPCIÓN
A3: 00 | B3: OTROS (ESPECIFICAR)
A4: 01 | B4: FACTURA
A5: 02 | B5: RECIBO POR HONORARIOS
A6: 03 | B6: BOLETA DE VENTA
A7: 04 | B7: LIQUIDACIÓN DE COMPRA
A8: 05 | B8: BOLETO DE COMPAÑÍA DE AVIACIÓN COMERCIAL POR EL SERVICIO DE TRANSPORTE AÉREO DE PASAJEROS
A9: 06 | B9: CARTA DE PORTE AÉREO POR EL SERVICIO DE TRANSPORTE DE CARGA AÉREA
A10: 07 | B10: NOTA DE CRÉDITO
A11: 08 | B11: NOTA DE DÉBITO
A12: 09 | B12: GUÍA DE REMISIÓN - REMITENTE
A13: 10 | B13: RECIBO POR ARRENDAMIENTO
A14: 11 | B14: PÓLIZA EMITIDA POR LAS BOLSAS DE VALORES, BOLSAS DE PRODUCTOS O AGENTES DE INTERMEDIACIÓN POR OPERACIONES REALIZADAS EN LAS BOLSAS DE VALORES O PRODUCTOS O FUERA DE LAS MISMAS, AUTORIZADAS POR CONASEV
A15: 12 | B15: TICKET O CINTA EMITIDO POR MÁQUINA REGISTRADORA
A16: 13 | B16: DOCUMENTO EMITIDO POR BANCOS, INSTITUCIONES FINANCIERAS, CREDITICIAS Y DE SEGUROS QUE SE ENCUENTREN BAJO EL CONTROL DE LA SUPERINTENDENCIA DE BANCA Y SEGUROS
A17: 14 | B17: RECIBO POR SERVICIOS PÚBLICOS DE SUMINISTRO DE ENERGÍA ELÉCTRICA, AGUA, TELÉFONO, TELEX Y TELEGRÁFICOS Y OTROS SERVICIOS COMPLEMENTARIOS QUE SE INCLUYAN EN EL RECIBO DE SERVICIO PÚBLICO
A18: 15 | B18: BOLETO EMITIDO POR LAS EMPRESAS DE TRANSPORTE PÚBLICO URBANO DE PASAJEROS
A19: 16 | B19: BOLETO DE VIAJE EMITIDO POR LAS EMPRESAS DE TRANSPORTE PÚBLICO INTERPROVINCIAL DE PASAJEROS DENTRO DEL PAÍS
A20: 17 | B20: DOCUMENTO EMITIDO POR LA IGLESIA CATÓLICA POR EL ARRENDAMIENTO DE BIENES INMUEBLES
A21: 18 | B21: DOCUMENTO EMITIDO POR LAS ADMINISTRADORAS PRIVADAS DE FONDO DE PENSIONES QUE SE ENCUENTRAN BAJO LA SUPERVISIÓN DE LA SUPERINTENDENCIA DE ADMINISTRADORAS PRIVADAS DE FONDOS DE PENSIONES
A22: 19 | B22: BOLETO O ENTRADA POR ATRACCIONES Y ESPECTÁCULOS PÚBLICOS
A23: 20 | B23: COMPROBANTE DE RETENCIÓN
A24: 21 | B24: CONOCIMIENTO DE EMBARQUE POR EL SERVICIO DE TRANSPORTE DE CARGA MARÍTIMA
A25: 22 | B25: COMPROBANTE POR OPERACIONES NO HABITUALES
A26: 23 | B26: PÓLIZAS DE ADJUDICACIÓN EMITIDAS CON OCASIÓN DEL REMATE O ADJUDICACIÓN DE BIENES POR VENTA FORZADA, POR LOS MARTILLEROS O LAS ENTIDADES QUE REMATEN O SUBASTEN BIENES POR CUENTA DE TERCEROS
A27: 24 | B27: CERTIFICADO DE PAGO DE REGALÍAS EMITIDAS POR PERUPETRO S.A
A28: 25 | B28: DOCUMENTO DE ATRIBUCIÓN (LEY DEL IMPUESTO GENERAL A LAS VENTAS E IMPUESTO SELECTIVO AL CONSUMO, ART. 19º, ÚLTIMO PÁRRAFO, R.S. N° 022-98-SUNAT).
A29: 26 | B29: RECIBO POR EL PAGO DE LA TARIFA POR USO DE AGUA SUPERFICIAL CON FINES AGRARIOS Y POR EL PAGO DE LA CUOTA PARA LA EJECUCIÓN DE UNA DETERMINADA OBRA O ACTIVIDAD ACORDADA POR LA ASAMBLEA GENERAL DE LA COMISIÓN DE REGANTES O RESOLUCIÓN EXPEDIDA POR EL JEFE DE LA UNIDAD DE AGUAS Y DE RIEGO (DECRETO SUPREMO N° 003-90-AG, ARTS. 28 Y 48)
A30: 27 | B30: SEGURO COMPLEMENTARIO DE TRABAJO DE RIESGO
A31: 28 | B31: TARIFA UNIFICADA DE USO DE AEROPUERTO
A32: 29 | B32: DOCUMENTOS EMITIDOS POR LA COFOPRI EN CALIDAD DE OFERTA DE VENTA DE TERRENOS, LOS CORRESPONDIENTES A LAS SUBASTAS PÚBLICAS Y A LA RETRIBUCIÓN DE LOS SERVICIOS QUE PRESTA
A33: 30 | B33: DOCUMENTOS EMITIDOS POR LAS EMPRESAS QUE DESEMPEÑAN EL ROL ADQUIRENTE EN LOS SISTEMAS DE PAGO MEDIANTE TARJETAS DE CRÉDITO Y DÉBITO
A34: 31 | B34: GUÍA DE REMISIÓN - TRANSPORTISTA
A35: 32 | B35: DOCUMENTOS EMITIDOS POR LAS EMPRESAS RECAUDADORAS DE LA DENOMINADA GARANTÍA DE RED PRINCIPAL A LA QUE HACE REFERENCIA EL NUMERAL 7.6 DEL ARTÍCULO 7° DE LA LEY N° 27133 – LEY DE PROMOCIÓN DEL DESARROLLO DE LA INDUSTRIA DEL GAS NATURAL
A36: 34 | B36: DOCUMENTO DEL OPERADOR
A37: 35 | B37: DOCUMENTO DEL PARTÍCIPE
A38: 36 | B38: RECIBO DE DISTRIBUCIÓN DE GAS NATURAL
A39: 37 | B39: DOCUMENTOS QUE EMITAN LOS CONCESIONARIOS DEL SERVICIO DE REVISIONES TÉCNICAS VEHICULARES, POR LA PRESTACIÓN DE DICHO SERVICIO
A40: 50 | B40: DECLARACIÓN ÚNICA DE ADUANAS - IMPORTACIÓN DEFINITIVA
A41: 52 | B41: DESPACHO SIMPLIFICADO - IMPORTACIÓN SIMPLIFICADA
A42: 53 | B42: DECLARACIÓN DE MENSAJERÍA O COURIER
A43: 54 | B43: LIQUIDACIÓN DE COBRANZA
A44: 87 | B44: NOTA DE CRÉDITO ESPECIAL
A45: 88 | B45: NOTA DE DÉBITO ESPECIAL
A46: 91 | B46: COMPROBANTE DE NO DOMICILIADO
A47: 96 | B47: EXCESO DE CRÉDITO FISCAL POR RETIRO DE BIENES
A48: 97 | B48: NOTA DE CRÉDITO - NO DOMICILIADO
A49: 98 | B49: NOTA DE DÉBITO - NO DOMICILIADO
A50: 99 | B50: OTROS -CONSOLIDADO DE BOLETAS DE VENTA

Sheet TDOC (hidden)
A1: TIPOS DE DOCUMENTOS
A2: N° | B2: DESCRIPCIÓN
A3: 0 | B3: OTROS TIPOS DE DOCUMENTOS
A4: 1 | B4: DOCUMENTO NACIONAL DE IDENTIDAD (DNI)
A5: 4 | B5: CARNET DE EXTRANJERIA
A6: 6 | B6: REGISTRO ÚNICO DE CONTRIBUYENTES
A7: 7 | B7: PASAPORTE

Sheet TPAGO (hidden)
A1: TIPO DE MEDIO DE PAGO
A2: N° | B2: DESCRIPCIÓN
A3: 001 | B3: DEPÓSITO EN CUENTA
A4: 002 | B4: GIRO
A5: 003 | B5: TRANSFERENCIA DE FONDOS
A6: 004 | B6: ORDEN DE PAGO
A7: 005 | B7: TARJETA DE DÉBITO
A8: 006 | B8: TARJETA DE CRÉDITO
A9: 007 | B9: CHEQUES CON LA CLÁUSULA DE "NO NEGOCIABLE", "INTRANSFERIBLES", "NO A LA ORDEN" U OTRA EQUIVALENTE, A QUE SE REFIERE EL INCISO F) DEL ARTICULO 5° DEL DECRETO LEGISLATIVO.
A10: 008 | B10: EFECTIVO, POR OPERACIONES EN LAS QUE NO EXISTE OBLIGACIÓN DE UTILIZAR MEDIOS DE PAGO
A11: 009 | B11: EFECTIVO, EN LOS DEMÁS CASOS
A12: 010 | B12: MEDIOS DE PAGO DE COMERCIO EXTERIOR
A13: 011 | B13: LETRAS DE CAMBIO
A14: 101 | B14: TRANSFERENCIAS - COMERCIO EXTERIOR
A15: 102 | B15: CHEQUES BANCARIOS - COMERCIO EXTERIOR
A16: 103 | B16: ORDEN DE PAGO SIMPLE - COMERCIO EXTERIOR
A17: 104 | B17: ORDEN DE PAGO DOCUMENTARIO - COMERCIO EXTERIOR
A18: 105 | B18: REMESA SIMPLE - COMERCIO EXTERIOR
A19: 106 | B19: REMESA DOCUMENTARIA - COMERCIO EXTERIOR
A20: 107 | B20: CARTA DE CRÉDITO SIMPLE - COMERCIO EXTERIOR
A21: 108 | B21: CARTA DE CRÉDITO DOCUMENTARIO - COMERCIO EXTERIOR
A22: 999 | B22: OTROS MEDIOS DE PAGO (ESPECIFICAR)

Sheet TCLIEN (hidden)
A1: CLIENTES
A2: NÚMERO | B2: NOMBRE O RAZÓN SOCIAL | C2: TIPO
A3: 10101010101 | B3: SONIDO DIGITAL EIRL | C3: 6
A4: 10123456789 | B4: EL NATURAL | C4: 6
A5: 10987654321 | B5: EL PREFERIDO SAC | C5: 6
A6: 20123456789 | B6: EL JURIDICO | C6: 6
A7: 20134567890 | B7: A1 EIRL | C7: 6
A8: 20556622331 | B8: SISTEMAS SAC | C8: 6

Sheet TPROVEE (hidden)
A1: PROVEEDORES
A2: NÚMERO | B2: NOMBRE O RAZÓN SOCIAL | C2: TIPO
A3: 10663322112 | B3: AM AP NOMB | C3: 6
A4: 20445566778 | B4: EL QUE TODO LO TIENE SAC | C4: 6

Sheet TBCOS (hidden)
A1: ENTIDADES FINANCIERAS
A2: N° | B2: DESCRIPCIÓN
A3: 00 | B3: OTROS (ESPECIFICAR)
A4: 02 | B4: DE CRÉDITO DEL PERÚ
A5: 03 | B5: INTERBANK
A6: 05 | B6: LATINO
A7: 07 | B7: CITYBANK N.A.
A8: 08 | B8: STANDARD CHARTERED
A9: 09 | B9: WIESE SUDAMERIS
A10: 11 | B10: CONTINENTAL
A11: 12 | B11: DE LIMA
A12: 16 | B12: MERCANTIL
A13: 18 | B13: NACIÓN
A14: 22 | B14: SANTANDER CENTRAL HISPANO - PERÚ
A15: 23 | B15: DE COMERCIO
A16: 25 | B16: REPUBLICA
A17: 26 | B17: NBK BANK
A18: 29 | B18: BANCOSUR
A19: 35 | B19: FINANCIERO DEL PERÚ
A20: 37 | B20: DEL PROGRESO
A21: 38 | B21: INTERAMERICANO FINANZAS
A22: 39 | B22: BANEX
A23: 40 | B23: NUEVO MUNDO
A24: 41 | B24: SUDAMERICANO
A25: 42 | B25: DEL LIBERTADOR
A26: 43 | B26: DEL TRABAJO
A27: 44 | B27: SOLVENTA
A28: 45 | B28: SERBANCO
A29: 46 | B29: BANK OF BOSTON
A30: 47 | B30: ORIÓN
A31: 48 | B31: DEL PAÍS
A32: 49 | B32: MI BANCO
A33: 50 | B33: DE PARIS
A34: 51 | B34: BANQUE BNP PARIBAS - ANDES
A35: 52 | B35: MIBANCO BANCO DE LA MICROEMPRESA - MIBANCO
A36: 53 | B36: BANCO DE LA NACIÓN
A37: 54 | B37: CORPORACIÓN FINANCIERA DE DESARROLLO - COFIDE
A38: 55 | B38: FINANCIERA CMR
A39: 56 | B39: FINANCIERA VOLVO FINANCE DEL PERÚ
A40: 57 | B40: CAJA MUNICIPAL DE AHORRO Y CRÉDITO AREQUIPA
A41: 58 | B41: CAJA MUNICIPAL DE AHORRO Y CRÉDITO CHINCHA
A42: 59 | B42: CAJA MUNICIPAL DE AHORRO Y CRÉDITO CUSCO
A43: 60 | B43: CAJA MUNICIPAL DE AHORRO Y CRÉDITO DEL SANTA
A44: 61 | B44: CAJA MUNICIPAL DE AHORRO Y CRÉDITO HUANCAYO
A45: 62 | B45: CAJA MUNICIPAL DE AHORRO Y CRÉDITO ICA
A46: 63 | B46: CAJA MUNICIPAL DE AHORRO Y CRÉDITO MAYNAS
A47: 64 | B47: CAJA MUNICIPAL DE AHORRO Y CRÉDITO PAITA
A48: 65 | B48: CAJA MUNICIPAL DE AHORRO Y CRÉDITO PISCO
A49: 66 | B49: CAJA MUNICIPAL DE AHORRO Y CRÉDITO PIURA
A50: 67 | B50: CAJA MUNICIPAL DE AHORRO Y CRÉDITO SULLANA
A51: 68 | B51: CAJA MUNICIPAL DE AHORRO Y CRÉDITO TACNA
A52: 69 | B52: CAJA MUNICIPAL DE AHORRO Y CRÉDITO TRUJILLO
A53: 70 | B53: CAJA MUNICIPAL DE CRÉDITO POPULAR LIMA
A54: 71 | B54: CAJA RURAL DE AHORRO Y CRÉDITO CAJAMARCA
A55: 72 | B55: CAJA RURAL DE AHORRO Y CRÉDITO DEL SUR
A56: 73 | B56: CAJA RURAL DE AHORRO Y CRÉDITO CHAVÍN
A57: 74 | B57: CAJA RURAL DE AHORRO Y CRÉDITO CRUZ DE CHALPÓN
A58: 75 | B58: CAJA RURAL DE AHORRO Y CRÉDITO LOS LIBERTADORES DE AYACUCHO
A59: 76 | B59: CAJA RURAL DE AHORRO Y CRÉDITO LOS ANDES
A60: 77 | B60: CAJA RURAL DE AHORRO Y CRÉDITO NOR PERÚ
A61: 78 | B61: CAJA RURAL DE AHORRO Y CRÉDITO PROFINANZAS
A62: 79 | B62: CAJA RURAL DE AHORRO Y CRÉDITO PRYMERA
A63: 80 | B63: CAJA RURAL DE AHORRO Y CRÉDITO QUILLABAMBA - CREDINKA
A64: 81 | B64: CAJA RURAL DE AHORRO Y CRÉDITO DE LA REGIÓN DE SAN MARTÍN
A65: 82 | B65: CAJA RURAL DE AHORRO Y CRÉDITO SEÑOR DE LUREN
A66: 99 | B66: BANCOS DEL EXTERIOR

Sheet TBCOSCIA (hidden)
A1: BANCOS EMPRESA
A2: N° CUENTA | B2: MONEDA | C2: CÓDIGO | D2: DESCRIPCIÓN
A3: 1944578958965 | B3: DÓLARES AMERICANOS | C3: 2 | D3: DE CRÉDITO DEL PERÚ
A4: 19123456789524 | B4: NUEVOS SOLES | C4: 2 | D4: DE CRÉDITO DEL PERÚ

Sheet TOTROS (hidden)
A1: OTRAS ENTIDADES
A2: CÓDIGO | B2: DESCRIPCIÓN
A3: E001 | B3: SOCIO
A4: E002 | B4: EMPLEADO
A5: E003 | B5: OBRERO

Sheet VOUDIARIO (hidden)
B1: VOUCHER -DIARIO | L1: REGISTRO
B2: MES | C2: 1 | D2: ENERO | E2: VOUCHER | F2: 3 | G2: Nº VOU. | H2: =IF(AND(C2>0,F2>0),INDEX(TVOU!B3:N24,MATCH(F2,TVOU!A3:A24,0),MATCH(C2,TVOU!B2:N2,0)),0)+1 -> 3 | L2: 132
B3: x | L3: 46001
B4: FECHA | C4: 31/01/2013 | F4: DOCUMENTO: | G4: TIPO | H4: 14
B5: LIBRO | C5: 8 | D5: REGISTRO DE COMPRAS | G5: SERIE | H5: T004
B6: OPERAC. | C6: 2 | G6: NÚM. o TRANS. | H6: 15234889
B7: x
B8: BANCO | F8: CTA. CTE.
B9: MEDIO PAG. | F9: ENTIDAD | G9: 10663322112 | H9: AM AP NOMB
B10: x
B11: GLOSA | C11: LUZ
B12: x | E12: =IF(H12<>I12,"NO CUADRA","") ->  | F12: =H12-I12 -> 0 | G12: TOTALES | H12: =SUM(H14:H499958) -> 218 | I12: =SUM(I14:I499958) -> 218
B13: ITEM | C13: CUENTA | D13: NOMBRE | E13: - | F13: -- | G13: --- | H13: DEBE | I13: HABER | J13: REGISTRO | K13: MES
B14: 1 | C14: 63610 | D14: Energía eléctrica | H14: 100 | I14: 0 | J14: 132 | K14: 1
B15: 1 | C15: 79100 | D15: Cargas imputables a cuentas de costos y gastos | H15: 0 | I15: 100 | J15: 132 | K15: 1
B16: 1 | C16: 94361 | D16: Energía eléctrica | H16: 100 | I16: 0 | J16: 132 | K16: 1
B17: 2 | C17: 40111 | D17: IGV - Cuenta propia | H17: 18 | I17: 0 | J17: 132 | K17: 1
B18: 3 | C18: 42120 | D18: Emitidas | H18: 0 | I18: 118 | J18: 132 | K18: 1

Sheet BDDIARIO (hidden)
A1: REGISTRO | B1: MES | C1: TVOUCHER | D1: VOUCHER | E1: FECHA | F1: LIBRO | G1: OPERACIÓN | H1: TIPO | I1: SERIE | J1: NUMERO | K1: ENTIDAD | L1: GLOSA
A2: 111 | B2: 1 | C2: 1 | D2: 1 | E2: 2013-01-02 | F2: 3 | G2: 1 | L2: POR EL INICIO DE OPERACIONES
A3: 121 | B3: 1 | C3: 2 | D3: 1 | E3: 15/01/2013 | F3: 14 | G3: 1 | H3: 1 | I3: 1 | J3: 1 | K3: 20134567890 | L3: VENTA DE MERCADERÍA
A4: 131 | B4: 1 | C4: 3 | D4: 1 | E4: 2013-01-05 | F4: 8 | G4: 1 | H4: 1 | I4: 10 | J4: 1524 | K4: 20445566778 | L4: COMPRA DE MERCDERÍA
A5: 132 | B5: 1 | C5: 3 | D5: 2 | E5: 31/01/2013 | F5: 8 | G5: 2 | H5: 14 | I5: T004 | J5: 15234889 | K5: 10663322112 | L5: LUZ
A6: 141 | B6: 1 | C6: 4 | D6: 1 | E6: 31/01/2013 | F6: 1 | G6: 1 | H6: 1 | I6: 1 | J6: 1 | K6: 20134567890 | L6: COBRO DEL MES
A7: 161 | B7: 1 | C7: 6 | D7: 1 | E7: 31/01/2013 | L7: COSTO DE VENTA DEL MES

Sheet BDASTODIARIO (hidden)
A1: REGISTRO | B1: MES | C1: ITEM | D1: CUENTA | E1: NOMBRE | F1: DEBE | G1: HABER | H1: - | I1: -- | J1: ---
A2: 111 | B2: 1 | C2: 1 | D2: 10100 | E2: Caja | F2: 50000 | G2: 0
A3: 111 | B3: 1 | C3: 2 | D3: 50110 | E3: Acciones | F3: 0 | G3: 50000
A4: 131 | B4: 1 | C4: 1 | D4: 20111 | E4: Costo | F4: 20000 | G4: 0
A5: 131 | B5: 1 | C5: 1 | D5: 61110 | E5: Mercaderías manufacturadas | F5: 0 | G5: 20000
A6: 131 | B6: 1 | C6: 1 | D6: 60110 | E6: Costo | F6: 20000 | G6: 0
A7: 131 | B7: 1 | C7: 2 | D7: 40111 | E7: IGV - Cuenta propia | F7: 3600 | G7: 0
A8: 131 | B8: 1 | C8: 3 | D8: 42120 | E8: Emitidas | F8: 0 | G8: 23600
A9: 121 | B9: 1 | C9: 1 | D9: 12120 | E9: Emitidas en cartera | F9: 23600 | G9: 0
A10: 121 | B10: 1 | C10: 2 | D10: 40111 | E10: IGV - Cuenta propia | F10: 0 | G10: 3600
A11: 121 | B11: 1 | C11: 3 | D11: 70111 | E11: Terceros | F11: 0 | G11: 20000
A12: 161 | B12: 1 | C12: 1 | D12: 69111 | E12: Terceros | F12: 10000 | G12: 0
A13: 161 | B13: 1 | C13: 2 | D13: 20111 | E13: Costo | F13: 0 | G13: 10000
A14: 161 | B14: 1 | C14: 3 | D14: 61110 | E14: Mercaderías manufacturadas | F14: 10000 | G14: 0
A15: 161 | B15: 1 | C15: 4 | D15: 79100 | E15: Cargas imputables a cuentas de costos y gastos | F15: 0 | G15: 10000
A16: 141 | B16: 1 | C16: 1 | D16: 10100 | E16: Caja | F16: 23600 | G16: 0
A17: 141 | B17: 1 | C17: 2 | D17: 12120 | E17: Emitidas en cartera | F17: 0 | G17: 23600
A18: 132 | B18: 1 | C18: 1 | D18: 63610 | E18: Energía eléctrica | F18: 100 | G18: 0
A19: 132 | B19: 1 | C19: 1 | D19: 79100 | E19: Cargas imputables a cuentas de costos y gastos | F19: 0 | G19: 100
A20: 132 | B20: 1 | C20: 1 | D20: 94361 | E20: Energía eléctrica | F20: 100 | G20: 0
A21: 132 | B21: 1 | C21: 2 | D21: 40111 | E21: IGV - Cuenta propia | F21: 18 | G21: 0
A22: 132 | B22: 1 | C22: 3 | D22: 42120 | E22: Emitidas | F22: 0 | G22: 118

Sheet CONSDIARIO1 (hidden)
A1: MES | B1: REGISTRO | C1: MES | D1: CUENTA | E1: NOMBRE | F1: DEBE | G1: HABER | H1: TVOUCHER | I1: VOUCHER | J1: FECHA | K1: GLOSA | L1: LIBRO | M1: OPERACIÓN | N1: TIPO | O1: SERIE | P1: NUMERO | Q1: ENTIDAD | R1: MES | S1: REGISTRO | T1: MES | U1: TVOUCHER | V1: VOUCHER | W1: FECHA | X1: GLOSA | Y1: LIBRO | Z1: OPERACIÓN | AA1: TIPO | AB1: SERIE | AC1: NUMERO | AD1: CUENTA | AE1: NOMBRE | AF1: DEBE | AG1: HABER | AH1: ENTIDAD
A2: <1 | R2: 1 | S2: 111 | T2: 1 | U2: 1 | V2: 1 | W2: 41276 | X2: POR EL INICIO DE OPERACIONES | Y2: 3 | Z2: 1 | AA2: 0 | AB2: 0 | AC2: 0 | AD2: 10100 | AE2: Caja | AF2: 50000 | AG2: 0 | AH2: 0
S3: 111 | T3: 1 | U3: 1 | V3: 1 | W3: 41276 | X3: POR EL INICIO DE OPERACIONES | Y3: 3 | Z3: 1 | AA3: 0 | AB3: 0 | AC3: 0 | AD3: 50110 | AE3: Acciones | AF3: 0 | AG3: 50000 | AH3: 0
S4: 131 | T4: 1 | U4: 3 | V4: 1 | W4: 41279 | X4: COMPRA DE MERCDERÍA | Y4: 8 | Z4: 1 | AA4: 1 | AB4: 10 | AC4: 1524 | AD4: 20111 | AE4: Costo | AF4: 20000 | AG4: 0 | AH4: 20445566778
S5: 131 | T5: 1 | U5: 3 | V5: 1 | W5: 41279 | X5: COMPRA DE MERCDERÍA | Y5: 8 | Z5: 1 | AA5: 1 | AB5: 10 | AC5: 1524 | AD5: 61110 | AE5: Mercaderías manufacturadas | AF5: 0 | AG5: 20000 | AH5: 20445566778
S6: 131 | T6: 1 | U6: 3 | V6: 1 | W6: 41279 | X6: COMPRA DE MERCDERÍA | Y6: 8 | Z6: 1 | AA6: 1 | AB6: 10 | AC6: 1524 | AD6: 60111 | AE6: Costo | AF6: 20000 | AG6: 0 | AH6: 20445566778
S7: 131 | T7: 1 | U7: 3 | V7: 1 | W7: 41279 | X7: COMPRA DE MERCDERÍA | Y7: 8 | Z7: 1 | AA7: 1 | AB7: 10 | AC7: 1524 | AD7: 40111 | AE7: IGV - Cuenta propia | AF7: 3600 | AG7: 0 | AH7: 20445566778
S8: 131 | T8: 1 | U8: 3 | V8: 1 | W8: 41279 | X8: COMPRA DE MERCDERÍA | Y8: 8 | Z8: 1 | AA8: 1 | AB8: 10 | AC8: 1524 | AD8: 42120 | AE8: Emitidas | AF8: 0 | AG8: 23600 | AH8: 20445566778
S9: 121 | T9: 1 | U9: 2 | V9: 1 | W9: 15/01/2013 | X9: VENTA DE MERCADERÍA | Y9: 14 | Z9: 1 | AA9: 1 | AB9: 1 | AC9: 1 | AD9: 12120 | AE9: Emitidas en cartera | AF9: 23600 | AG9: 0 | AH9: 20134567890
S10: 121 | T10: 1 | U10: 2 | V10: 1 | W10: 15/01/2013 | X10: VENTA DE MERCADERÍA | Y10: 14 | Z10: 1 | AA10: 1 | AB10: 1 | AC10: 1 | AD10: 40111 | AE10: IGV - Cuenta propia | AF10: 0 | AG10: 3600 | AH10: 20134567890
S11: 121 | T11: 1 | U11: 2 | V11: 1 | W11: 15/01/2013 | X11: VENTA DE MERCADERÍA | Y11: 14 | Z11: 1 | AA11: 1 | AB11: 1 | AC11: 1 | AD11: 70111 | AE11: Terceros | AF11: 0 | AG11: 20000 | AH11: 20134567890
S12: 161 | T12: 1 | U12: 6 | V12: 1 | W12: 31/01/2013 | X12: COSTO DE VENTA DEL MES | Y12: 0 | Z12: 0 | AA12: 0 | AB12: 0 | AC12: 0 | AD12: 69111 | AE12: Terceros | AF12: 10000 | AG12: 0 | AH12: 0
S13: 161 | T13: 1 | U13: 6 | V13: 1 | W13: 31/01/2013 | X13: COSTO DE VENTA DEL MES | Y13: 0 | Z13: 0 | AA13: 0 | AB13: 0 | AC13: 0 | AD13: 20111 | AE13: Costo | AF13: 0 | AG13: 10000 | AH13: 0
S14: 161 | T14: 1 | U14: 6 | V14: 1 | W14: 31/01/2013 | X14: COSTO DE VENTA DEL MES | Y14: 0 | Z14: 0 | AA14: 0 | AB14: 0 | AC14: 0 | AD14: 61110 | AE14: Mercaderías manufacturadas | AF14: 10000 | AG14: 0 | AH14: 0
S15: 161 | T15: 1 | U15: 6 | V15: 1 | W15: 31/01/2013 | X15: COSTO DE VENTA DEL MES | Y15: 0 | Z15: 0 | AA15: 0 | AB15: 0 | AC15: 0 | AD15: 79100 | AE15: Cargas imputables a cuentas de costos y gastos | AF15: 0 | AG15: 10000 | AH15: 0
S16: 141 | T16: 1 | U16: 4 | V16: 1 | W16: 31/01/2013 | X16: COBRO DEL MES | Y16: 1 | Z16: 1 | AA16: 1 | AB16: 1 | AC16: 1 | AD16: 10100 | AE16: Caja | AF16: 23600 | AG16: 0 | AH16: 20134567890
S17: 141 | T17: 1 | U17: 4 | V17: 1 | W17: 31/01/2013 | X17: COBRO DEL MES | Y17: 1 | Z17: 1 | AA17: 1 | AB17: 1 | AC17: 1 | AD17: 12120 | AE17: Emitidas en cartera | AF17: 0 | AG17: 23600 | AH17: 20134567890

Sheet LDIARIO (hidden)
A1: LIBRO DIARIO | M1: ENERO
A2: X
A3: =CONCATENATE("PERÍODO: ",mesconsulta," - ",periodo) -> PERÍODO: ENERO - 2013
A4: =CONCATENATE("RUC: ",ruc) -> RUC: 20123456789
A5: =IF(razon>"",razon,"") -> ARCHIVO EXCEL EIRL
A6: X
A7: NÚMERO CORREL. DE LA OPERAC. | C7: FECHA OPERAC. | D7: GLOSA O DESCRIPCIÓN DE LA OPERACIÓN | E7: REFERENCIA DE LA OPERACIÓN | J7: CUENTA CONTABLE ASOCIADA A LA OPERACIÓN | L7: MOVIMIENTO | N7: ENTIDAD
E8: CÓDIGO DEL LIBRO | F8: NÚMERO CORREL. | G8: NÚMERO DEL DOCUMENTO | J8: CÓDIGO | K8: DENOMINACIÓN | L8: DEBE | M8: HABER
A9: T. VOU. | B9: NÚM. | G9: TIPO | H9: SERIE | I9: NÚMERO
A10: - | D10: SALDO INICIAL | L10: =SUM(CONSDIARIO1!F2:F800000) -> 0 | M10: =SUM(CONSDIARIO1!G2:G800000) -> 0
A11: 1 | B11: 1 | C11: 2013-01-02 | D11: POR EL INICIO DE OPERACIONES | E11: 3 | F11: 1 | G11: 0 | H11: 0 | I11: 0 | J11: 10100 | K11: Caja | L11: 50000 | M11: 0 | N11: 0
A12: 1 | B12: 1 | C12: 2013-01-02 | D12: POR EL INICIO DE OPERACIONES | E12: 3 | F12: 1 | G12: 0 | H12: 0 | I12: 0 | J12: 50110 | K12: Acciones | L12: 0 | M12: 50000 | N12: 0
A13: 2 | B13: 1 | C13: 15/01/2013 | D13: VENTA DE MERCADERÍA | E13: 14 | F13: 1 | G13: 1 | H13: 1 | I13: 1 | J13: 12120 | K13: Emitidas en cartera | L13: 23600 | M13: 0 | N13: 20134567890
A14: 2 | B14: 1 | C14: 15/01/2013 | D14: VENTA DE MERCADERÍA | E14: 14 | F14: 1 | G14: 1 | H14: 1 | I14: 1 | J14: 40111 | K14: IGV - Cuenta propia | L14: 0 | M14: 3600 | N14: 20134567890
A15: 2 | B15: 1 | C15: 15/01/2013 | D15: VENTA DE MERCADERÍA | E15: 14 | F15: 1 | G15: 1 | H15: 1 | I15: 1 | J15: 70111 | K15: Terceros | L15: 0 | M15: 20000 | N15: 20134567890
A16: 3 | B16: 1 | C16: 2013-01-05 | D16: COMPRA DE MERCDERÍA | E16: 8 | F16: 1 | G16: 1 | H16: 10 | I16: 1524 | J16: 20111 | K16: Costo | L16: 20000 | M16: 0 | N16: 20445566778
A17: 3 | B17: 1 | C17: 2013-01-05 | D17: COMPRA DE MERCDERÍA | E17: 8 | F17: 1 | G17: 1 | H17: 10 | I17: 1524 | J17: 61110 | K17: Mercaderías manufacturadas | L17: 0 | M17: 20000 | N17: 20445566778
A18: 3 | B18: 1 | C18: 2013-01-05 | D18: COMPRA DE MERCDERÍA | E18: 8 | F18: 1 | G18: 1 | H18: 10 | I18: 1524 | J18: 60111 | K18: Costo | L18: 20000 | M18: 0 | N18: 20445566778
A19: 3 | B19: 1 | C19: 2013-01-05 | D19: COMPRA DE MERCDERÍA | E19: 8 | F19: 1 | G19: 1 | H19: 10 | I19: 1524 | J19: 40111 | K19: IGV - Cuenta propia | L19: 3600 | M19: 0 | N19: 20445566778
A20: 3 | B20: 1 | C20: 2013-01-05 | D20: COMPRA DE MERCDERÍA | E20: 8 | F20: 1 | G20: 1 | H20: 10 | I20: 1524 | J20: 42120 | K20: Emitidas | L20: 0 | M20: 23600 | N20: 20445566778
A21: 4 | B21: 1 | C21: 31/01/2013 | D21: COBRO DEL MES | E21: 1 | F21: 1 | G21: 1 | H21: 1 | I21: 1 | J21: 10100 | K21: Caja | L21: 23600 | M21: 0 | N21: 20134567890
A22: 4 | B22: 1 | C22: 31/01/2013 | D22: COBRO DEL MES | E22: 1 | F22: 1 | G22: 1 | H22: 1 | I22: 1 | J22: 12120 | K22: Emitidas en cartera | L22: 0 | M22: 23600 | N22: 20134567890
A23: 6 | B23: 1 | C23: 31/01/2013 | D23: COSTO DE VENTA DEL MES | E23: 0 | F23: 0 | G23: 0 | H23: 0 | I23: 0 | J23: 69111 | K23: Terceros | L23: 10000 | M23: 0 | N23: 0
A24: 6 | B24: 1 | C24: 31/01/2013 | D24: COSTO DE VENTA DEL MES | E24: 0 | F24: 0 | G24: 0 | H24: 0 | I24: 0 | J24: 20111 | K24: Costo | L24: 0 | M24: 10000 | N24: 0
A25: 6 | B25: 1 | C25: 31/01/2013 | D25: COSTO DE VENTA DEL MES | E25: 0 | F25: 0 | G25: 0 | H25: 0 | I25: 0 | J25: 61110 | K25: Mercaderías manufacturadas | L25: 10000 | M25: 0 | N25: 0
A26: 6 | B26: 1 | C26: 31/01/2013 | D26: COSTO DE VENTA DEL MES | E26: 0 | F26: 0 | G26: 0 | H26: 0 | I26: 0 | J26: 79100 | K26: Cargas imputables a cuentas de costos y gastos | L26: 0 | M26: 10000 | N26: 0
K27: TOTALES | L27: 160800 | M27: 160800

Sheet CONSULMAYOR (hidden)
A1: CUENTA | C1: FECHA | D1: TVOUCHER | E1: VOUCHER | F1: GLOSA | G1: DEBE | H1: HABER | I1: ENTIDAD | J1: TIPO | K1: SERIE | L1: NUMERO | M1: =SI(SUMAR.SI(CONSDIARIO1!D2:D800000,D2,CONSDIARIO1!F2:F800000)>SUMAR.SI(CONSDIARIO1!D2:D800000,D2,CONSDIARIO1!G2:G800000),SUMAR.SI(CONSDIARIO1!D2:D800000,D2,CONSDIARIO1!F2:F800000)-SUMAR.SI(CONSDIARIO1!D2:D800000,D2,CONSDIARIO1!G2:G800000),0) | N1: =SI(SUMAR.SI(CONSDIARIO1!D2:D800000,D2,CONSDIARIO1!G2:G800000)>SUMAR.SI(CONSDIARIO1!D2:D800000,D2,CONSDIARIO1!F2:F800000),SUMAR.SI(CONSDIARIO1!D2:D800000,D2,CONSDIARIO1!G2:G800000)-SUMAR.SI(CONSDIARIO1!D2:D800000,D2,CONSDIARIO1!F2:F800000),0)
A2: 10100 | C2: CUENTA | D2: 79100 | E2: =IF(ISERROR(VLOOKUP(D2,TPC!B4:C2502,1,0))=FALSE,VLOOKUP(D2,TPC!B4:C2502,2,0),0) -> Cargas imputables a cuentas de costos y gastos
A3: 12120 | C3: - | F3: SALDO INICIAL | G3: =IF(SUMIF(CONSDIARIO1!D2:D800000,D2,CONSDIARIO1!F2:F800000)>SUMIF(CONSDIARIO1!D2:D800000,D2,CONSDIARIO1!G2:G800000),SUMIF(CONSDIARIO1!D2:D800000,D2,CONSDIARIO1!F2:F800000)-SUMIF(CONSDIARIO1!D2:D800000,D2,CONSDIARIO1!G2:G800000),0) -> 0 | H3: =IF(SUMIF(CONSDIARIO1!D2:D800000,D2,CONSDIARIO1!G2:G800000)>SUMIF(CONSDIARIO1!D2:D800000,D2,CONSDIARIO1!F2:F800000),SUMIF(CONSDIARIO1!D2:D800000,D2,CONSDIARIO1!G2:G800000)-SUMIF(CONSDIARIO1!D2:D800000,D2,CONSDIARIO1!F2:F800000),0) -> 0
A4: 20111 | C4: 31/01/2013 | D4: 6 | E4: 1 | F4: COSTO DE VENTA DEL MES | G4: 0 | H4: 10000 | I4: 0 | J4: 0 | K4: 0 | L4: 0
A5: 40111 | C5: - | F5: SUBTOTALES | G5: 0 | H5: 10000
A6: 42120 | C6: - | F6: SALDO FINAL | G6: =IF(H5>G5,H5-G5,0) -> 10000 | H6: =IF(G5>H5,G5-H5,0) -> 0
A7: 50110 | C7: - | F7: TOTALES | G7: 10000 | H7: 10000
A8: 60111 | C8: -
A9: 61110

Sheet LMAYOR (hidden)
A1: LIBRO MAYOR | F1: ENERO
A2: X | D2: X
A3: =CONCATENATE("PERÍODO: ",mesconsultamayor," - ",periodo) -> PERÍODO: ENERO - 2013
A4: =CONCATENATE("RUC: ",ruc) -> RUC: 20123456789
A5: =IF(razon>"",razon,"") -> ARCHIVO EXCEL EIRL
A6: X
A7: FECHA | B7: NÚM. CORR. L. D. | D7: DESCRIPCION O GLOSA DE LA OPERACIÓN | E7: SALDOS Y MOVIMIENTOS | G7: ENTIDAD | H7: NÚMERO DEL DOCUMENTO
A8: OPERAC. | B8: T. VOU. | C8: NÚM. | E8: DEUDOR | F8: ACREEDOR | H8: TIPO | I8: SERIE | J8: NÚMERO
A9: CUENTA | B9: 10100 | C9: Caja
A10: - | D10: SALDO INICIAL | E10: 0 | F10: 0
A11: 2013-01-02 | B11: 1 | C11: 1 | D11: POR EL INICIO DE OPERACIONES | E11: 50000 | F11: 0 | G11: 0 | H11: 0 | I11: 0 | J11: 0
A12: 31/01/2013 | B12: 4 | C12: 1 | D12: COBRO DEL MES | E12: 23600 | F12: 0 | G12: 20134567890 | H12: 1 | I12: 1 | J12: 1
A13: - | D13: SUBTOTALES | E13: 73600 | F13: 0
A14: - | D14: SALDO FINAL | E14: 0 | F14: 73600
A15: - | D15: TOTALES | E15: 73600 | F15: 73600
A16: -
A17: CUENTA | B17: 12120 | C17: Emitidas en cartera
A18: - | D18: SALDO INICIAL | E18: 0 | F18: 0
A19: 15/01/2013 | B19: 2 | C19: 1 | D19: VENTA DE MERCADERÍA | E19: 23600 | F19: 0 | G19: 20134567890 | H19: 1 | I19: 1 | J19: 1
A20: 31/01/2013 | B20: 4 | C20: 1 | D20: COBRO DEL MES | E20: 0 | F20: 23600 | G20: 20134567890 | H20: 1 | I20: 1 | J20: 1
A21: - | D21: SUBTOTALES | E21: 23600 | F21: 23600
A22: - | D22: SALDO FINAL | E22: 0 | F22: 0
A23: - | D23: TOTALES | E23: 23600 | F23: 23600
A24: -
A25: CUENTA | B25: 20111 | C25: Costo
A26: - | D26: SALDO INICIAL | E26: 0 | F26: 0
A27: 2013-01-05 | B27: 3 | C27: 1 | D27: COMPRA DE MERCDERÍA | E27: 20000 | F27: 0 | G27: 20445566778 | H27: 1 | I27: 10 | J27: 1524
A28: 31/01/2013 | B28: 6 | C28: 1 | D28: COSTO DE VENTA DEL MES | E28: 0 | F28: 10000 | G28: 0 | H28: 0 | I28: 0 | J28: 0
A29: - | D29: SUBTOTALES | E29: 20000 | F29: 10000
A30: - | D30: SALDO FINAL | E30: 0 | F30: 10000
A31: - | D31: TOTALES | E31: 20000 | F31: 20000
A32: -
A33: CUENTA | B33: 40111 | C33: IGV - Cuenta propia
A34: - | D34: SALDO INICIAL | E34: 0 | F34: 0
A35: 2013-01-05 | B35: 3 | C35: 1 | D35: COMPRA DE MERCDERÍA | E35: 3600 | F35: 0 | G35: 20445566778 | H35: 1 | I35: 10 | J35: 1524
A36: 15/01/2013 | B36: 2 | C36: 1 | D36: VENTA DE MERCADERÍA | E36: 0 | F36: 3600 | G36: 20134567890 | H36: 1 | I36: 1 | J36: 1
A37: - | D37: SUBTOTALES | E37: 3600 | F37: 3600
A38: - | D38: SALDO FINAL | E38: 0 | F38: 0
A39: - | D39: TOTALES | E39: 3600 | F39: 3600
A40: -
A41: CUENTA | B41: 42120 | C41: Emitidas
A42: - | D42: SALDO INICIAL | E42: 0 | F42: 0
A43: 2013-01-05 | B43: 3 | C43: 1 | D43: COMPRA DE MERCDERÍA | E43: 0 | F43: 23600 | G43: 20445566778 | H43: 1 | I43: 10 | J43: 1524
A44: - | D44: SUBTOTALES | E44: 0 | F44: 23600
A45: - | D45: SALDO FINAL | E45: 23600 | F45: 0
A46: - | D46: TOTALES | E46: 23600 | F46: 23600
A47: -
A48: CUENTA | B48: 50110 | C48: Acciones
A49: - | D49: SALDO INICIAL | E49: 0 | F49: 0
A50: 2013-01-02 | B50: 1 | C50: 1 | D50: POR EL INICIO DE OPERACIONES | E50: 0 | F50: 50000 | G50: 0 | H50: 0 | I50: 0 | J50: 0
A51: - | D51: SUBTOTALES | E51: 0 | F51: 50000
A52: - | D52: SALDO FINAL | E52: 50000 | F52: 0
A53: - | D53: TOTALES | E53: 50000 | F53: 50000
A54: -
A55: CUENTA | B55: 60111 | C55: Costo
A56: - | D56: SALDO INICIAL | E56: 0 | F56: 0
A57: 2013-01-05 | B57: 3 | C57: 1 | D57: COMPRA DE MERCDERÍA | E57: 20000 | F57: 0 | G57: 20445566778 | H57: 1 | I57: 10 | J57: 1524
A58: - | D58: SUBTOTALES | E58: 20000 | F58: 0
A59: - | D59: SALDO FINAL | E59: 0 | F59: 20000
A60: - | D60: TOTALES | E60: 20000 | F60: 20000
A61: -
A62: CUENTA | B62: 61110 | C62: Mercaderías manufacturadas
A63: - | D63: SALDO INICIAL | E63: 0 | F63: 0
A64: 2013-01-05 | B64: 3 | C64: 1 | D64: COMPRA DE MERCDERÍA | E64: 0 | F64: 20000 | G64: 20445566778 | H64: 1 | I64: 10 | J64: 1524
A65: 31/01/2013 | B65: 6 | C65: 1 | D65: COSTO DE VENTA DEL MES | E65: 10000 | F65: 0 | G65: 0 | H65: 0 | I65: 0 | J65: 0
A66: - | D66: SUBTOTALES | E66: 10000 | F66: 20000
A67: - | D67: SALDO FINAL | E67: 10000 | F67: 0
A68: - | D68: TOTALES | E68: 20000 | F68: 20000
A69: -
A70: CUENTA | B70: 69111 | C70: Terceros
A71: - | D71: SALDO INICIAL | E71: 0 | F71: 0
A72: 31/01/2013 | B72: 6 | C72: 1 | D72: COSTO DE VENTA DEL MES | E72: 10000 | F72: 0 | G72: 0 | H72: 0 | I72: 0 | J72: 0
A73: - | D73: SUBTOTALES | E73: 10000 | F73: 0
A74: - | D74: SALDO FINAL | E74: 0 | F74: 10000
A75: - | D75: TOTALES | E75: 10000 | F75: 10000
A76: -
A77: CUENTA | B77: 70111 | C77: Terceros
A78: - | D78: SALDO INICIAL | E78: 0 | F78: 0
A79: 15/01/2013 | B79: 2 | C79: 1 | D79: VENTA DE MERCADERÍA | E79: 0 | F79: 20000 | G79: 20134567890 | H79: 1 | I79: 1 | J79: 1
A80: - | D80: SUBTOTALES | E80: 0 | F80: 20000
A81: - | D81: SALDO FINAL | E81: 20000 | F81: 0
A82: - | D82: TOTALES | E82: 20000 | F82: 20000
A83: -
A84: CUENTA | B84: 79100 | C84: Cargas imputables a cuentas de costos y gastos
A85: - | D85: SALDO INICIAL | E85: 0 | F85: 0
A86: 31/01/2013 | B86: 6 | C86: 1 | D86: COSTO DE VENTA DEL MES | E86: 0 | F86: 10000 | G86: 0 | H86: 0 | I86: 0 | J86: 0
A87: - | D87: SUBTOTALES | E87: 0 | F87: 10000
A88: - | D88: SALDO FINAL | E88: 10000 | F88: 0
A89: - | D89: TOTALES | E89: 10000 | F89: 10000
A90: -

Sheet BDRVENTA (hidden)
A1: MES | B1: VOUCHER
C5: Grabar y ordenar

Sheet BDASTOVENTA (hidden)
A1: MES | B1: VOUCHER
B2: 01001
B5: 02001
D7: Grabar y ordenar

Sheet BDRCOMPRA (hidden)
A1: MES | B1: VOUCHER
C3: Grabar y ordenar

Sheet BDASTOCOMPRA (hidden)
A1: MES | B1: VOUCHER
C4: Grabar y ordenar

Sheet BDCAJA (hidden)
A1: MES | B1: VOUCHER
C4: Grabar y ordenar
C8: NO VA

Sheet BDASTOCAJA (hidden)
A1: REGISTRO | B1: MES | C1: TVOUCHER | D1: VOUCHER | E1: FECHA | F1: LIBRO | G1: OPERACIÓN | H1: TIPO | I1: SERIE | J1: NUMERO | K1: BANCO | L1: CUENTA | M1: PAGO | N1: ENTIDAD | O1: GLOSA
C4: Grabar y ordenar

Sheet BDBANCO (hidden)
A1: MES | B1: VOUCHER
C5: Grabar y ordenar
C8: NO VA

Sheet BDASTOBANCO (hidden)
A1: MES | B1: VOUCHER
C5: Grabar y ordenar

Sheet CONSULHT (hidden)
A1: MES | B1: REGISTRO | C1: MES | D1: CUENTA | E1: NOMBRE | F1: DEBE | G1: HABER
A2: <2 | B2: 111 | C2: 1 | D2: 10100 | E2: Caja | F2: 50000 | G2: 0
B3: 111 | C3: 1 | D3: 50110 | E3: Acciones | F3: 0 | G3: 50000
B4: 131 | C4: 1 | D4: 20111 | E4: Costo | F4: 20000 | G4: 0
B5: 131 | C5: 1 | D5: 61110 | E5: Mercaderías manufacturadas | F5: 0 | G5: 20000
B6: 131 | C6: 1 | D6: 60110 | E6: Costo | F6: 20000 | G6: 0
B7: 131 | C7: 1 | D7: 40111 | E7: IGV - Cuenta propia | F7: 3600 | G7: 0
B8: 131 | C8: 1 | D8: 42120 | E8: Emitidas | F8: 0 | G8: 23600
B9: 121 | C9: 1 | D9: 12120 | E9: Emitidas en cartera | F9: 23600 | G9: 0
B10: 121 | C10: 1 | D10: 40111 | E10: IGV - Cuenta propia | F10: 0 | G10: 3600
B11: 121 | C11: 1 | D11: 70111 | E11: Terceros | F11: 0 | G11: 20000
B12: 161 | C12: 1 | D12: 69111 | E12: Terceros | F12: 10000 | G12: 0
B13: 161 | C13: 1 | D13: 20111 | E13: Costo | F13: 0 | G13: 10000
B14: 161 | C14: 1 | D14: 61110 | E14: Mercaderías manufacturadas | F14: 10000 | G14: 0
B15: 161 | C15: 1 | D15: 79100 | E15: Cargas imputables a cuentas de costos y gastos | F15: 0 | G15: 10000
B16: 141 | C16: 1 | D16: 10100 | E16: Caja | F16: 23600 | G16: 0
B17: 141 | C17: 1 | D17: 12120 | E17: Emitidas en cartera | F17: 0 | G17: 23600
B18: 132 | C18: 1 | D18: 63610 | E18: Energía eléctrica | F18: 100 | G18: 0
B19: 132 | C19: 1 | D19: 79100 | E19: Cargas imputables a cuentas de costos y gastos | F19: 0 | G19: 100
B20: 132 | C20: 1 | D20: 94361 | E20: Energía eléctrica | F20: 100 | G20: 0
B21: 132 | C21: 1 | D21: 40111 | E21: IGV - Cuenta propia | F21: 18 | G21: 0
B22: 132 | C22: 1 | D22: 42120 | E22: Emitidas | F22: 0 | G22: 118

Sheet HT (hidden)
B1: =CONCATENATE("RUC: ",ruc) -> RUC: 20123456789 | M1: ENERO | O1: =SUMAR.SI(CONSULHT!D:D,HT!B7,CONSULHT!F:F) | P1: =SUMAR.SI(CONSULHT!D:D,HT!B7,CONSULHT!G:G) | Q1: =SI(D7>E7,D7-E7,0) | R1: =SI(E7>D7,E7-D7,0) | S1: =SI(A7=1,F7,0) | T1: =SI(A7=1,G7,0) | U1: =SI(O(A7=3,A7=4),F7,0) | V1: =SI(O(A7=3,A7=4),G7,0) | W1: =SI(O(A7=2,A7=4),F7,0) | X1: =SI(O(A7=2,A7=4),G7,0)
B2: =IF(razon>"",razon,"") -> ARCHIVO EXCEL EIRL
B3: =CONCATENATE("HOJA DE TRABAJO A ",mesconsultaht," DEL ",periodo) -> HOJA DE TRABAJO A ENERO DEL 2013
B4: x
B5: CTA | C5: NOMBRE | D5: SUMAS | F5: SALDO | H5: INVENTARIO | J5: RESULTA. POR NATUR. | L5: RESULTA. POR FUNC.
B6: X | D6: DEBE | E6: HABER | F6: DEUDOR | G6: ACREEDOR | H6: ACTIVO | I6: PASIVO | J6: PERDIDA | K6: GANANCIA | L6: PERDIDA | M6: GANANCIA
A7: 1 | B7: 10100 | C7: Caja | D7: 73600 | E7: 0 | F7: 73600 | G7: 0 | H7: 73600 | I7: 0 | J7: 0 | K7: 0 | L7: 0 | M7: 0 | P7: =MID(B7,1,2) -> 10
A8: 1 | B8: 12120 | C8: Emitidas en cartera | D8: 23600 | E8: 23600 | F8: 0 | G8: 0 | H8: 0 | I8: 0 | J8: 0 | K8: 0 | L8: 0 | M8: 0 | P8: 12
A9: 1 | B9: 20111 | C9: Costo | D9: 20000 | E9: 10000 | F9: 10000 | G9: 0 | H9: 10000 | I9: 0 | J9: 0 | K9: 0 | L9: 0 | M9: 0 | P9: 20
A10: 1 | B10: 40111 | C10: IGV - Cuenta propia | D10: 3618 | E10: 3600 | F10: 18 | G10: 0 | H10: 18 | I10: 0 | J10: 0 | K10: 0 | L10: 0 | M10: 0 | P10: 40
A11: 1 | B11: 42120 | C11: Emitidas | D11: 0 | E11: 23718 | F11: 0 | G11: 23718 | H11: 0 | I11: 23718 | J11: 0 | K11: 0 | L11: 0 | M11: 0 | P11: 42
A12: 1 | B12: 50110 | C12: Acciones | D12: 0 | E12: 50000 | F12: 0 | G12: 50000 | H12: 0 | I12: 50000 | J12: 0 | K12: 0 | L12: 0 | M12: 0 | P12: 50
A13: 3 | B13: 60110 | C13: Mercaderías manufacturadas | D13: 20000 | E13: 0 | F13: 20000 | G13: 0 | H13: 0 | I13: 0 | J13: 20000 | K13: 0 | L13: 0 | M13: 0 | P13: 60
A14: 3 | B14: 61110 | C14: Mercaderías manufacturadas | D14: 10000 | E14: 20000 | F14: 0 | G14: 10000 | H14: 0 | I14: 0 | J14: 0 | K14: 10000 | L14: 0 | M14: 0 | P14: 61
A15: 3 | B15: 63610 | C15: Energía eléctrica | D15: 100 | E15: 0 | F15: 100 | G15: 0 | H15: 0 | I15: 0 | J15: 100 | K15: 0 | L15: 0 | M15: 0 | P15: 63
A16: 2 | B16: 69111 | C16: Terceros | D16: 10000 | E16: 0 | F16: 10000 | G16: 0 | H16: 0 | I16: 0 | J16: 0 | K16: 0 | L16: 10000 | M16: 0 | P16: 69
A17: 4 | B17: 70111 | C17: Terceros | D17: 0 | E17: 20000 | F17: 0 | G17: 20000 | H17: 0 | I17: 0 | J17: 0 | K17: 20000 | L17: 0 | M17: 20000 | P17: 70
A18: 0 | B18: 79100 | C18: Cargas imputables a cuentas de costos y gastos | D18: 0 | E18: 10100 | F18: 0 | G18: 10100 | H18: 0 | I18: 0 | J18: 0 | K18: 0 | L18: 0 | M18: 0 | P18: 79
A19: 2 | B19: 94361 | C19: Energía eléctrica | D19: 100 | E19: 0 | F19: 100 | G19: 0 | H19: 0 | I19: 0 | J19: 0 | K19: 0 | L19: 100 | M19: 0 | P19: 94
B20: - | C20: SUBTOTALES | D20: 161018 | E20: 161018 | F20: 113818 | G20: 113818 | H20: 83618 | I20: 73718 | J20: 20100 | K20: 30000 | L20: 10100 | M20: 20000
B21: - | C21: SALDOS | H21: =IF(I20>H20,I20-H20,0) -> 0 | I21: =IF(H20>I20,H20-I20,0) -> 9900 | J21: =IF(K20>J20,K20-J20,0) -> 9900 | K21: =IF(J20>K20,J20-K20,0) -> 0 | L21: =IF(M20>L20,M20-L20,0) -> 9900 | M21: =IF(L20>M20,L20-M20,0) -> 0
B22: - | C22: TOTALES | H22: 83618 | I22: 83618 | J22: 30000 | K22: 30000 | L22: 20000 | M22: 20000

Sheet BG (hidden)
A1: =IF(razon>"",razon,"") -> ARCHIVO EXCEL EIRL
A2: =CONCATENATE("RUC: ",ruc) -> RUC: 20123456789
A3: BALANCE GENERAL
A4: =CONCATENATE("A ",mesconsultaht," DEL ",periodo) -> A ENERO DEL 2013
A5: (Expresado en Nuevos Soles)
A7: COD | B7: ACTIVO | C7: S/. | D7: COD | E7: PASIVO Y PATRIMONIO | F7: S/.
B8: ACTIVO CORRIENTE | E8: PASIVO CORRIENTE
A9: 10 | B9: EFECTIVO Y EQUIVALENTES DE EFECTIVO | C9: =SUMIF(HT!P:P,A9,HT!H:H)-SUMIF(HT!P:P,A9,HT!I:I) -> 73600 | D9: 40 | E9: TRIBUTOS, CONTRAPRESTACIONES Y APORTES AL SISTEMA DE PENSIONES Y DE SALUD POR PAGAR | F9: =SUMIF(HT!P:P,D9,HT!I:I)-SUMIF(HT!P:P,D9,HT!H:H) -> -18
A10: 11 | B10: INVERSIONES FINANCIERAS | C10: =SUMIF(HT!P:P,A10,HT!H:H)-SUMIF(HT!P:P,A10,HT!I:I) -> 0 | D10: 41 | E10: REMUNERACIONES Y PARTICIPACIONES POR PAGAR | F10: =SUMIF(HT!P:P,D10,HT!I:I)-SUMIF(HT!P:P,D10,HT!H:H) -> 0
A11: 12 | B11: CUENTAS POR COBRAR COMERCIALES – TERCEROS | C11: =SUMIF(HT!P:P,A11,HT!H:H)-SUMIF(HT!P:P,A11,HT!I:I) -> 0 | D11: 42 | E11: CUENTAS POR PAGAR COMERCIALES – TERCEROS | F11: =SUMIF(HT!P:P,D11,HT!I:I)-SUMIF(HT!P:P,D11,HT!H:H) -> 23718
A12: 13 | B12: CUENTAS POR COBRAR COMERCIALES – RELACIONADAS | C12: =SUMIF(HT!P:P,A12,HT!H:H)-SUMIF(HT!P:P,A12,HT!I:I) -> 0 | D12: 43 | E12: CUENTAS POR PAGAR COMERCIALES – RELACIONADAS | F12: =SUMIF(HT!P:P,D12,HT!I:I)-SUMIF(HT!P:P,D12,HT!H:H) -> 0
A13: 14 | B13: CUENTAS POR COBRAR AL PERSONAL, A LOS ACCIONISTAS (SOCIOS), DIRECTORES Y GERENTES | C13: =SUMIF(HT!P:P,A13,HT!H:H)-SUMIF(HT!P:P,A13,HT!I:I) -> 0 | D13: 44 | E13: CUENTAS POR PAGAR A LOS ACCIONISTAS (SOCIOS), DIRECTORES Y GERENTES | F13: =SUMIF(HT!P:P,D13,HT!I:I)-SUMIF(HT!P:P,D13,HT!H:H) -> 0
A14: 16 | B14: CUENTAS POR COBRAR DIVERSAS - TERCEROS | C14: =SUMIF(HT!P:P,A14,HT!H:H)-SUMIF(HT!P:P,A14,HT!I:I) -> 0 | E14: Total Pasivo Corriente | F14: =SUM(F9:F13) -> 23700
A15: 17 | B15: CUENTAS POR COBRAR DIVERSAS - RELACIONADAS | C15: =SUMIF(HT!P:P,A15,HT!H:H)-SUMIF(HT!P:P,A15,HT!I:I) -> 0
A16: 18 | B16: SERVICIOS Y OTROS CONTRATADOS POR ANTICIPADO | C16: =SUMIF(HT!P:P,A16,HT!H:H)-SUMIF(HT!P:P,A16,HT!I:I) -> 0
A17: 19 | B17: ESTIMACIÓN DE CUENTAS DE COBRANZA DUDOSA | C17: =SUMIF(HT!P:P,A17,HT!H:H)-SUMIF(HT!P:P,A17,HT!I:I) -> 0 | E17: PASIVO NO CORRIENTE
A18: 20 | B18: MERCADERÍAS | C18: =SUMIF(HT!P:P,A18,HT!H:H)-SUMIF(HT!P:P,A18,HT!I:I) -> 10000 | D18: 45 | E18: OBLIGACIONES FINANCIERAS | F18: =SUMIF(HT!P:P,D18,HT!I:I)-SUMIF(HT!P:P,D18,HT!H:H) -> 0
A19: 21 | B19: PRODUCTOS TERMINADOS | C19: =SUMIF(HT!P:P,A19,HT!H:H)-SUMIF(HT!P:P,A19,HT!I:I) -> 0 | D19: 46 | E19: CUENTAS POR PAGAR DIVERSAS – TERCEROS | F19: =SUMIF(HT!P:P,D19,HT!I:I)-SUMIF(HT!P:P,D19,HT!H:H) -> 0
A20: 22 | B20: SUBPRODUCTOS, DESECHOS Y DESPERDICIOS | C20: =SUMIF(HT!P:P,A20,HT!H:H)-SUMIF(HT!P:P,A20,HT!I:I) -> 0 | D20: 47 | E20: CUENTAS POR PAGAR DIVERSAS – RELACIONADAS | F20: =SUMIF(HT!P:P,D20,HT!I:I)-SUMIF(HT!P:P,D20,HT!H:H) -> 0
A21: 23 | B21: PRODUCTOS EN PROCESO | C21: =SUMIF(HT!P:P,A21,HT!H:H)-SUMIF(HT!P:P,A21,HT!I:I) -> 0 | D21: 48 | E21: PROVISIONES | F21: =SUMIF(HT!P:P,D21,HT!I:I)-SUMIF(HT!P:P,D21,HT!H:H) -> 0
A22: 24 | B22: MATERIAS PRIMAS | C22: =SUMIF(HT!P:P,A22,HT!H:H)-SUMIF(HT!P:P,A22,HT!I:I) -> 0 | D22: 49 | E22: PASIVO DIFERIDO | F22: =SUMIF(HT!P:P,D22,HT!I:I)-SUMIF(HT!P:P,D22,HT!H:H) -> 0
A23: 25 | B23: MATERIALES AUXILIARES, SUMINISTROS Y REPUESTOS | C23: =SUMIF(HT!P:P,A23,HT!H:H)-SUMIF(HT!P:P,A23,HT!I:I) -> 0 | E23: Total Pasivo No Corriente | F23: =SUM(F18:F22) -> 0
A24: 26 | B24: ENVASES Y EMBALAJES | C24: =SUMIF(HT!P:P,A24,HT!H:H)-SUMIF(HT!P:P,A24,HT!I:I) -> 0
A25: 27 | B25: ACTIVOS NO CORRIENTES MANTENIDOS PARA LA VENTA | C25: =SUMIF(HT!P:P,A25,HT!H:H)-SUMIF(HT!P:P,A25,HT!I:I) -> 0 | E25: Total Pasivo | F25: =F14+F23 -> 23700
A26: 28 | B26: EXISTENCIAS POR RECIBIR | C26: =SUMIF(HT!P:P,A26,HT!H:H)-SUMIF(HT!P:P,A26,HT!I:I) -> 0
A27: 29 | B27: DESVALORIZACIÓN DE EXISTENCIAS | C27: =SUMIF(HT!P:P,A27,HT!H:H)-SUMIF(HT!P:P,A27,HT!I:I) -> 0
B28: Total Activo Corriente | C28: =SUM(C9:C27) -> 83600
B30: ACTIVO NO CORRIENTE | E30: PATRIMONIO NETO
A31: 30 | B31: INVERSIONES MOBILIARIAS | C31: =SUMIF(HT!P:P,A31,HT!H:H)-SUMIF(HT!P:P,A31,HT!I:I) -> 0 | D31: 50 | E31: CAPITAL | F31: =SUMIF(HT!P:P,D31,HT!I:I)-SUMIF(HT!P:P,D31,HT!H:H) -> 50000
A32: 31 | B32: INVERSIONES INMOBILIARIAS | C32: =SUMIF(HT!P:P,A32,HT!H:H)-SUMIF(HT!P:P,A32,HT!I:I) -> 0 | D32: 51 | E32: ACCIONES DE INVERSIÓN | F32: =SUMIF(HT!P:P,D32,HT!I:I)-SUMIF(HT!P:P,D32,HT!H:H) -> 0
A33: 32 | B33: ACTIVOS ADQUIRIDOS EN ARRENDAMIENTO FINANCIERO | C33: =SUMIF(HT!P:P,A33,HT!H:H)-SUMIF(HT!P:P,A33,HT!I:I) -> 0 | D33: 52 | E33: CAPITAL ADICIONAL | F33: =SUMIF(HT!P:P,D33,HT!I:I)-SUMIF(HT!P:P,D33,HT!H:H) -> 0
A34: 33 | B34: INMUEBLES, MAQUINARIA Y EQUIPO | C34: =SUMIF(HT!P:P,A34,HT!H:H)-SUMIF(HT!P:P,A34,HT!I:I) -> 0 | D34: 56 | E34: RESULTADOS NO REALIZADOS | F34: =SUMIF(HT!P:P,D34,HT!I:I)-SUMIF(HT!P:P,D34,HT!H:H) -> 0
A35: 34 | B35: INTANGIBLES | C35: =SUMIF(HT!P:P,A35,HT!H:H)-SUMIF(HT!P:P,A35,HT!I:I) -> 0 | D35: 57 | E35: EXCEDENTE DE REVALUACIÓN | F35: =SUMIF(HT!P:P,D35,HT!I:I)-SUMIF(HT!P:P,D35,HT!H:H) -> 0
A36: 35 | B36: ACTIVOS BIOLÓGICOS | C36: =SUMIF(HT!P:P,A36,HT!H:H)-SUMIF(HT!P:P,A36,HT!I:I) -> 0 | D36: 58 | E36: RESERVAS | F36: =SUMIF(HT!P:P,D36,HT!I:I)-SUMIF(HT!P:P,D36,HT!H:H) -> 0
A37: 36 | B37: DESVALORIZACIÓN DE ACTIVO INMOVILIZADO | C37: =SUMIF(HT!P:P,A37,HT!H:H)-SUMIF(HT!P:P,A37,HT!I:I) -> 0 | D37: 59 | E37: RESULTADOS ACUMULADOS | F37: =SUMIF(HT!P:P,D37,HT!I:I)-SUMIF(HT!P:P,D37,HT!H:H) -> 0
A38: 37 | B38: ACTIVO DIFERIDO | C38: =SUMIF(HT!P:P,A38,HT!H:H)-SUMIF(HT!P:P,A38,HT!I:I) -> 0 | E38: RESULTADO DEL EJERCICIO | F38: =ER!C27 -> 9900
A39: 38 | B39: OTROS ACTIVOS | C39: =SUMIF(HT!P:P,A39,HT!H:H)-SUMIF(HT!P:P,A39,HT!I:I) -> 0 | E39: Total Patrimonio Neto | F39: =SUM(F31:F38) -> 59900
A40: 39 | B40: DEPRECIACIÓN, AMORTIZACIÓN Y AGOTAMIENTO ACUMULADOS | C40: =SUMIF(HT!P:P,A40,HT!H:H)-SUMIF(HT!P:P,A40,HT!I:I) -> 0
B41: Total Activo No Corriente | C41: =SUM(C31:C40) -> 0
B43: TOTAL ACTIVO | C43: =C28+C41 -> 83600 | E43: TOTAL PASIVO Y PATRIMONIO | F43: =F25+F39 -> 83600

Sheet ER (hidden)
A1: =IF(razon>"",razon,"") -> ARCHIVO EXCEL EIRL
A2: =CONCATENATE("RUC: ",ruc) -> RUC: 20123456789
A3: ESTADO DE GANANCIAS Y PERDIDAS POR FUNCIÓN
A4: =CONCATENATE("A ",mesconsultaht," DEL ",periodo) -> A ENERO DEL 2013
A5: (Expresado en Nuevos Soles)
A7: COD | B7: CUENTA | C7: S/.
A8: 70 | B8: VENTAS | C8: =SUMIF(HT!P:P,A8,HT!M:M)-SUMIF(HT!P:P,A8,HT!L:L) -> 20000
A9: 74 | B9: DESCUENTOS, REBAJAS Y BONIFICACIONES CONCEDIDOS | C9: =SUMIF(HT!P:P,A9,HT!M:M)-SUMIF(HT!P:P,A9,HT!L:L) -> 0
B10: VENTAS NETAS | C10: =SUM(C8:C9) -> 20000
A12: 69 | B12: COSTO DE VENTAS | C12: =SUMIF(HT!P:P,A12,HT!M:M)-SUMIF(HT!P:P,A12,HT!L:L) -> -10000
B13: UTILIDAD BRUTA | C13: =SUM(C10:C12) -> 10000
B15: Gastos de Operación
A16: 91 | B16: COSTO DEL SERVICIO | C16: =SUMIF(HT!P:P,A16,HT!M:M)-SUMIF(HT!P:P,A16,HT!L:L) -> 0
A17: 94 | B17: GASTOS DE ADMINISTRACIÓN | C17: =SUMIF(HT!P:P,A17,HT!M:M)-SUMIF(HT!P:P,A17,HT!L:L) -> -100
A18: 95 | B18: GASTOS DE VENTA | C18: =SUMIF(HT!P:P,A18,HT!M:M)-SUMIF(HT!P:P,A18,HT!L:L) -> 0
A19: 97 | B19: GASTOS FINANCIEROS | C19: =SUMIF(HT!P:P,A19,HT!M:M)-SUMIF(HT!P:P,A19,HT!L:L) -> 0
B20: UTILIDAD DE OPERACIÓN | C20: =SUM(C13:C19) -> 9900
A22: 73 | B22: DESCUENTOS, REBAJAS Y BONIFICACIONES OBTENIDOS | C22: =SUMIF(HT!P:P,A22,HT!M:M)-SUMIF(HT!P:P,A22,HT!L:L) -> 0
A23: 75 | B23: OTROS INGRESOS DE GESTIÓN | C23: =SUMIF(HT!P:P,A23,HT!M:M)-SUMIF(HT!P:P,A23,HT!L:L) -> 0
A24: 76 | B24: GANANCIA POR MEDICIÓN DE ACTIVOS NO FINANCIEROS AL VALOR RAZONABLE | C24: =SUMIF(HT!P:P,A24,HT!M:M)-SUMIF(HT!P:P,A24,HT!L:L) -> 0
A25: 77 | B25: INGRESOS FINANCIEROS | C25: =SUMIF(HT!P:P,A25,HT!M:M)-SUMIF(HT!P:P,A25,HT!L:L) -> 0
A26: 66 | B26: PÉRDIDA POR MEDICIÓN DE ACTIVOS NO FINANCIEROS AL VALOR RAZONABLE | C26: =SUMIF(HT!P:P,A26,HT!M:M)-SUMIF(HT!P:P,A26,HT!L:L) -> 0
B27: UTILIDAD ANTES DE PARTICIPACIONES E IMPUESTOS | C27: =SUM(C20:C26) -> 9900
A30: ESTADO DE GANANCIAS Y PERDIDAS POR NATURALEZA
A32: 70 | B32: VENTAS | C32: =SUMIF(HT!P:P,A32,HT!K:K)-SUMIF(HT!P:P,A32,HT!J:J) -> 20000
A33: 74 | B33: DESCUENTOS, REBAJAS Y BONIFICACIONES CONCEDIDOS | C33: =SUMIF(HT!P:P,A33,HT!K:K)-SUMIF(HT!P:P,A33,HT!J:J) -> 0
B34: MARGEN COMERCIAL | C34: =SUM(C32:C33) -> 20000
A36: 71 | B36: VARIACIÓN DE LA PRODUCCIÓN ALMACENADA | C36: =SUMIF(HT!P:P,A36,HT!K:K)-SUMIF(HT!P:P,A36,HT!J:J) -> 0
A37: 72 | B37: PRODUCCIÓN DE ACTIVO INMOVILIZADO | C37: =SUMIF(HT!P:P,A37,HT!K:K)-SUMIF(HT!P:P,A37,HT!J:J) -> 0
B38: PRODUCCIÓN DEL EJERCICIO | C38: =SUM(C34:C37) -> 20000
A40: 60 | B40: COMPRAS | C40: =SUMIF(HT!P:P,A40,HT!K:K)-SUMIF(HT!P:P,A40,HT!J:J) -> -20000
A41: 61 | B41: VARIACIÓN DE EXISTENCIAS | C41: =SUMIF(HT!P:P,A41,HT!K:K)-SUMIF(HT!P:P,A41,HT!J:J) -> 10000
A42: 63 | B42: GASTOS DE SERVICIOS PRESTADOS POR TERCEROS | C42: =SUMIF(HT!P:P,A42,HT!K:K)-SUMIF(HT!P:P,A42,HT!J:J) -> -100
B43: VALOR AGREGADO | C43: =SUM(C38:C42) -> 9900
A45: 62 | B45: GASTOS DE PERSONAL, DIRECTORES Y GERENTES | C45: =SUMIF(HT!P:P,A45,HT!K:K)-SUMIF(HT!P:P,A45,HT!J:J) -> 0
A46: 64 | B46: GASTOS POR TRIBUTOS | C46: =SUMIF(HT!P:P,A46,HT!K:K)-SUMIF(HT!P:P,A46,HT!J:J) -> 0
B47: EXCEDENTE BRUTO DE EXPLOTACIÓN | C47: =SUM(C43:C46) -> 9900
A49: 65 | B49: OTROS GASTOS DE GESTIÓN | C49: =SUMIF(HT!P:P,A49,HT!K:K)-SUMIF(HT!P:P,A49,HT!J:J) -> 0
A50: 68 | B50: VALUACIÓN Y DETERIORO DE ACTIVOS Y PROVISIONES | C50: =SUMIF(HT!P:P,A50,HT!K:K)-SUMIF(HT!P:P,A50,HT!J:J) -> 0
A51: 73 | B51: DESCUENTOS, REBAJAS Y BONIFICACIONES OBTENIDOS | C51: =SUMIF(HT!P:P,A51,HT!K:K)-SUMIF(HT!P:P,A51,HT!J:J) -> 0
A52: 75 | B52: OTROS INGRESOS DE GESTIÓN | C52: =SUMIF(HT!P:P,A52,HT!K:K)-SUMIF(HT!P:P,A52,HT!J:J) -> 0
A53: 78 | B53: CARGAS CUBIERTAS POR PROVISIONES | C53: =SUMIF(HT!P:P,A53,HT!K:K)-SUMIF(HT!P:P,A53,HT!J:J) -> 0
B54: RESULTADO DE EXPLOTACION | C54: =SUM(C47:C53) -> 9900
A56: 76 | B56: GANANCIA POR MEDICIÓN DE ACTIVOS NO FINANCIEROS AL VALOR RAZONABLE | C56: =SUMIF(HT!P:P,A56,HT!K:K)-SUMIF(HT!P:P,A56,HT!J:J) -> 0
A57: 77 | B57: INGRESOS FINANCIEROS | C57: =SUMIF(HT!P:P,A57,HT!K:K)-SUMIF(HT!P:P,A57,HT!J:J) -> 0
A58: 66 | B58: PÉRDIDA POR MEDICIÓN DE ACTIVOS NO FINANCIEROS AL VALOR RAZONABLE | C58: =SUMIF(HT!P:P,A58,HT!K:K)-SUMIF(HT!P:P,A58,HT!J:J) -> 0
A59: 67 | B59: GASTOS FINANCIEROS | C59: =SUMIF(HT!P:P,A59,HT!K:K)-SUMIF(HT!P:P,A59,HT!J:J) -> 0
B60: UTILIDAD ANTES DE PARTICIPACIONES E IMPUESTOS | C60: =SUM(C54:C59) -> 9900

Sheet Hoja1 (hidden)
A2: ENERO | D2: NUEVOS SOLES | G2: INGRESO | I2: 1 | J2: BALANCE GENERAL
A3: FEBRERO | D3: DÓLARES AMERICANOS | G3: EGRESO | I3: 2 | J3: E. R. FUNCIÓN
A4: MARZO | I4: 3 | J4: E. R. NATURALEZA
A5: ABRIL | I5: 4 | J5: E. R. FUNC. Y NATUR.
A6: MAYO
A7: JUNIO
A8: JULIO
A9: AGOSTO
A10: SEPTIEMBRE
A11: OCTUBRE
A12: NOVIEMBRE
A13: DICIEMBRE

Sheet ae
A1: SISTEMA CONTABLE AExcel
A2: HECHO POR: | C2: 1 | D2: ENERO | F2: 1 | L2: 11
A3: www.archivoexcel.com
H4: 10
C5: 14 | D5: REGISTRO DE VENTAS E INGRESOS
